Cogmind - Beta 10.2 @@@ ROGUE MODE // 2021.02.10 @ 23:16:20 Player: Intraloper Result: Core destroyed Performance ------------- Evolutions (1) 500 Regions Visited (2) 400 Robots Destroyed (23) 115 Value Destroyed (564) 564 Prototype IDs (0) 0 Alien Tech Used (0) 0 Bonus (0) 0 TOTAL SCORE: 1579 Bonus ------- None Cogmind --------- Core Integrity 0/400 Matter 290/300 Energy 150/250 System Corruption 0% Temperature Cool (0) Movement Core (350) Ox6 Location -9/Materials Parts ------- > --- POWER (1) -------- Ion Engine > --- PROPULSION (3) --- (None) > --- UTILITY (3) ------ Large Storage Unit > --- WEAPON (2) ------- (None) > --- INVENTORY (10) --- Light Ion Engine Sensor Array Peak State ------------ > --- POWER ------------ Ion Engine > --- PROPULSION ------- Improved Treads Improved Treads Improved Treads > --- UTILITY ---------- Disposable Heat Sink Large Storage Unit High-capacity Storage Unit > --- WEAPON ----------- Particle Gun Beam Cannon > --- INVENTORY -------- Ion Engine Light Ion Engine Heat Sink Disposable Heat Sink Large Storage Unit Large Storage Unit High-capacity Storage Unit High-capacity Storage Unit Sensor Array [Rating: 15] Favorites ----------- Power Ion Engine Engine Ion Engine Propulsion Improved Treads Treads Improved Treads Leg Aluminum Leg Utility Disposable Heat Sink Device Disposable Heat Sink Storage High-capacity Storage Unit Weapon Beam Cannon Energy Gun Small Laser Energy Cannon Beam Cannon Build | -11 -10 -9 ------- Run | Scr Mat Mat Slots Evolved 2 | . . 2 Power . | . . . Propulsion 1 | . . 1 Utility 1 | . . 1 Weapon . | . . . Parts Attached 25 | 5 11 9 Power 4 | 1 2 1 Engine 4 | 1 2 1 Core . | . . . Reactor . | . . . Propulsion 6 | 2 2 2 Treads 4 | . 2 2 Leg 2 | 2 . . Wheel . | . . . Hover . | . . . Flight . | . . . Utility 6 | . 3 3 Device 2 | . 2 . Storage 4 | . 1 3 Processor . | . . . Hackware . | . . . Protection . | . . . Artifact . | . . . Weapon 9 | 2 4 3 Energy Gun 7 | 2 2 3 Energy Cannon 2 | . 2 . Ballistic Gun . | . . . Ballistic Cannon . | . . . Launcher . | . . . Special Weapon . | . . . Impact Weapon . | . . . Slashing Weapon . | . . . Piercing Weapon . | . . . Special Melee Weapon . | . . . Unidentified Prototypes . | . . . Parts Lost 14 | . 4 10 Power 3 | . 2 1 Propulsion 4 | . . 4 Utility 1 | . . 1 Weapon 6 | . 2 4 Highest Loss Streak 5 | . 3 5 Average Slot Usage (%) 92 | . 96 83 Engine 12 | . 13 9 Treads 26 | . 27 25 Device 17 | . 20 11 Storage 10 | . 6 20 Energy Gun 12 | . 16 4 Energy Cannon 10 | . 10 12 Naked Turns . | . . . Heaviest Build 76 | 6 44 76 Greatest Support 69 | 20 46 69 Greatest Overweight (x) 16 | . . 16 Average Overweight (x) . | . . . Largest Inventory Capacity 20 | 4 12 20 Average Capacity 9 | 4 7 17 Most Carried 12 | 2 12 12 Average Carried 6 | . 6 9 Final Capacity 12 | 4 12 10 Final Carried 11 | 2 11 2 Class Distribution -------------------- 96% | Mutant 3% | Hauler-Mutant Dominant Class ---------------- Mutant | -10/Materials Mutant | -9/Materials Resources | -11 -10 -9 ----------- Run | Scr Mat Mat Matter Collected 410 | 250 105 55 Remotely . | . . . Salvage Created 813 | 38 513 262 Parts 51 | 2 32 17 Haulers Intercepted 2 | . 1 1 Recyclers Shooed . | . . . Parts Field Recycled . | . . . Retrieved Matter . | . . . Parts Self-Destructed . | . . . Prevented . | . . . Kills | -11 -10 -9 ------- Run | Scr Mat Mat Combat Hostiles Destroyed 18 | 1 10 7 Melee 2 | . 2 . Guns 9 | 1 5 3 Cannons 7 | . 3 4 Classes Destroyed 6 | 1 5 . Tunneler 1 | . 1 . Hauler 2 | . 1 1 Recycler 1 | . 1 . Watcher 1 | . 1 . Swarmer 5 | . 2 3 Grunt 13 | 1 8 4 Best Kill Streak 4 | 1 3 4 Combat Bots Only 3 | 1 3 3 Max Kills in Single Turn 2 | 1 2 1 Gunslinging . | . . . Exploded . | . . . Melee 1 | . 1 . Uniques/NPCs Destroyed . | . . . Combat | -11 -10 -9 -------- Run | Scr Mat Mat Damage Taken 1914 | 59 490 1365 Core 516 | 12 91 413 Absorbed by Shields . | . . . Core Remaining (%) 76 | 95 58 . Volleys Fired 84 | 4 41 39 Largest 2 | 2 2 2 Hottest 125 | 90 120 125 Shots Fired 146 | 8 78 60 Gun 90 | 8 60 22 Cannon 56 | . 18 38 Launcher . | . . . Special . | . . . Kinetic . | . . . Thermal 146 | 8 78 60 Explosive . | . . . Electromagnetic . | . . . Robot Hit Streak 14 | 2 14 6 Robot Miss Streak 3 | 2 3 3 Penetration Max . | . . . Secondary Targets . | . . . Shots Hit Robots 95 | 4 52 39 Core Hits 41 | 2 24 15 Critical Hits . | . . . Critical Kills . | . . . Critical Parts Destroyed . | . . . Melee Attacks . | . . . Impact . | . . . Slashing . | . . . Piercing . | . . . Sneak Attacks . | . . . Combat Hostiles . | . . . Follow-up Attacks . | . . . Damage Inflicted 1289 | 47 596 646 Guns 684 | 47 434 203 Cannons 597 | . 156 441 Explosions . | . . . Melee . | . . . Ramming 8 | . 6 2 Kinetic . | . . . Thermal 1281 | 47 590 644 Explosive . | . . . Electromagnetic . | . . . Impact . | . . . Slashing . | . . . Piercing . | . . . Highest Corruption . | . . . Average Corruption . | . . . Corruption Purged . | . . . Overload Shots . | . . . Overflow Damage 13 | . . 13 Projectiles 13 | . . 13 Explosions . | . . . Melee . | . . . Knockbacks . | . . . Impact . | . . . Kinetic . | . . . Secondary . | . . . Self-Inflicted Damage . | . . . Shots . | . . . Rammed 8 | . 6 2 Targets Rammed 10 | . 8 2 Kicked . | . . . Crushed 2 | . 2 . Highest Temperature 199 | 164 198 199 Average Temperature 90 | 88 70 117 Received Heat Transfer 720 | 30 213 477 Siege Activations . | . . . Robots Corrupted . | . . . Combat Hostiles . | . . . Parts Fried . | . . . Impact Corruptions . | . . . Robots Melted . | . . . Combat Hostiles . | . . . Parts Melted 4 | . 2 2 Heat Transferred 2901 | 124 1380 1397 Parts Sabotaged . | . . . Parts Stolen . | . . . Parts Stripped . | . . . Power Chain Reactions . | . . . Missiles Intercepted . | . . . Alert | -11 -10 -9 ------- Run | Scr Mat Mat Peak Influence 297 | 20 297 202 Initial 80 | . 13 80 Average 123 | 3 140 118 Maximum Alert Level 1 | . 1 1 Low Security (%) 83 | 100 75 98 Level 1 16 | . 24 1 Level 2 . | . . . Level 3 . | . . . Level 4 . | . . . Level 5 . | . . . High Security . | . . . Max Security . | . . . Squads Dispatched 4 | . 3 1 Investigation 2 | . 1 1 Extermination . | . . . Reinforcement 2 | . 2 . Assault . | . . . Garrison . | . . . Intercept . | . . . Construction Impeded . | . . . Haulers Reinforced . | . . . Stealth | -11 -10 -9 --------- Run | Scr Mat Mat Distress Signals 1 | . 1 . Communications Jammed . | . . . Distress Signals . | . . . Times Spotted 37 | 1 21 15 Peak Tracking Total 9 | 1 4 9 Tactical Retreats 5 | . 4 1 Traps | -11 -10 -9 ------- Run | Scr Mat Mat Traps Triggered 2 | . 1 1 Indirectly . | . . . Trap Hack Attempts . | . . . Triggered . | . . . Disarmed . | . . . Reprogrammed . | . . . Reused . | . . . Traps Extracted . | . . . Installed . | . . . Triggered . | . . . Machines | -11 -10 -9 ---------- Run | Scr Mat Mat Machines Disabled . | . . . Max in Single Turn . | . . . Machines Sabotaged . | . . . Garrisons Compromised . | . . . Overloaded Fab Kills . | . . . Fab Network Shutdowns . | . . . Hacking | -11 -10 -9 --------- Run | Scr Mat Mat Machines Accessed . | . . . Terminals . | . . . Fabricators . | . . . Repair Stations . | . . . Recycling Units . | . . . Scanalyzers . | . . . Garrison Access . | . . . Total Hacks . | . . . Successful . | . . . Failed . | . . . Catastrophic . | . . . Database Lockouts . | . . . Manual . | . . . Terminals . | . . . Fabricators . | . . . Repair Stations . | . . . Recycling Units . | . . . Scanalyzers . | . . . Garrison Access . | . . . Terminal Hacks . | . . . Fabricator Hacks . | . . . Repair Station Hacks . | . . . Recycling Unit Hacks . | . . . Scanalyzer . | . . . Garrison Access Hacks . | . . . Unauthorized Hacks . | . . . Terminals . | . . . Fabricators . | . . . Repair Stations . | . . . Recycling Units . | . . . Scanalyzers . | . . . Garrison Access . | . . . Data Cores Recovered . | . . . Used . | . . . Hacking Detections . | . . . Full Trace Events . | . . . Feedback Events . | . . . Feedback Blocked . | . . . Robot Schematics Acquired . | . . . Robots Built . | . . . Matter . | . . . Time . | . . . Total Robot Build Rating . | . . . Part Schematics Acquired . | . . . Parts Built . | . . . Matter . | . . . Time . | . . . Total Part Build Rating . | . . . Parts Repaired . | . . . Time . | . . . Parts Recycled . | . . . Recycled Matter . | . . . Retrieved Matter . | . . . Retrieved Components . | . . . Parts Scanalyzed . | . . . Part Schematics Acquired . | . . . Parts Damaged . | . . . Bothacking | -11 -10 -9 ------------ Run | Scr Mat Mat Used RIF Installer . | . . . Robots Hacked . | . . . Non-combat . | . . . Combat . | . . . Robot Hacks Applied . | . . . Relay Couplers Released . | . . . Robots Rewired . | . . . Allies Hacked . | . . . Hacks Repelled . | . . . Allies | -11 -10 -9 -------- Run | Scr Mat Mat Total Allies . | . . . Largest Group . | . . . Highest-Rated Group . | . . . Highest-Rated Ally . | . . . Total Orders . | . . . Ally Attacks . | . . . Total Damage . | . . . Kills . | . . . Allies Corrupted . | . . . Allies Melted . | . . . Intel | -11 -10 -9 ------- Run | Scr Mat Mat Robot Analysis Total . | . . . Derelict Logs Recovered . | . . . Drone Launches . | . . . Drone Recoveries . | . . . Exploration | -11 -10 -9 ------------- Run | Scr Mat Mat Turns Passed 1060 | 86 689 285 Spaces Moved 471 | 62 309 100 Core 33 | 14 . 19 Treads 380 | . 299 81 Legs 58 | 48 10 . Wheels . | . . . Hover . | . . . Flight . | . . . Fastest Speed 50 | 50 120 50 Average Speed 150 | 104 158 151 Slowest Speed 850 | 120 160 850 Overloaded Moves . | . . . Propulsion Burnouts . | . . . Robots Hopped . | . . . Cave-ins Triggered . | . . . Exploration Rate (%) 25 | 7 61 8 Regions Visited 2 Branch Regions . Pre-discovered Areas . | . . . Known Exits Taken . | . . . Unknown Exits Taken 2 | 1 1 . Scrap Searched . | . . . Spaces Dug . | . . . Terrain Destroyed . | . . . Melee . | . . . Projectile . | . . . AOE . | . . . Terrain Rammed . | . . . Walls Destroyed . | . . . Machines Disabled . | . . . Actions | -11 -10 -9 --------- Run | Scr Mat Mat Total 669 | 73 425 171 Wait 47 | . 31 16 Move 469 | 61 308 100 Hop . | . . . Pick Up 25 | 3 19 3 Fast Attach 8 | 4 3 1 Attach 11 | 1 3 7 Detach 1 | . . 1 Swap 6 | . 5 1 Drop 9 | . 7 2 Fire 84 | 4 41 39 Melee . | . . . Ram 1 | . . 1 Kick . | . . . Crush 8 | . 8 . Escape Stasis . | . . . Rewire . | . . . Trap . | . . . Miscellaneous . | . . . Route ------- -11/Scrapyard -10/Materials (discovered 4 exits: [*Mat x2] / [*Min x2]) -9/Materials History --------- Turn | Location | Event 2 | -11/Scrapyard | Met Revision 17 57 | -11/Scrapyard | Discovered new exit (range 8) 87 | -11/Scrapyard | Entered Materials 233 | -10/Materials | Discovered new exit (range 6) 309 | -10/Materials | Lost 3 parts (1p2w) 342 | -10/Materials | Build established: Mutant 358 | -10/Materials | Discovered new exit (range 16) 405 | -10/Materials | Discovered new exit (range 9) 682 | -10/Materials | Discovered new exit (range 16) 776 | -10/Materials | Entered another Materials area 776 | -9/Materials | Evolved 2 slots: Propulsion x1, Utility x1 938 | -9/Materials | Lost 4 parts (1n3w) 1033 | -9/Materials | Core integrity fell below 50% 1038 | -9/Materials | Core integrity fell below 20% 1058 | -9/Materials | Lost 5 parts (1p3n1w) 1061 | -9/Materials | Core destroyed Last Messages --------------- 01016_ Beam Cannon destroyed. 01019_ R-06 Scavenger collects Mining Laser. 01021_ U-05 Engineer lays Concrete. 01025_ Imp. Treads destroyed. 01025_ U-05 Engineer lays Concrete. 01027_ Imp. Treads destroyed. 01036_ Dropped Lrg. Storage Unit. 01037_ Dropped Hcp. Storage Unit. 01045_ U-05 Engineer lays Concrete. 01048_ R-06 Scavenger inserts Sml. Laser into recycling unit. 01049_ Recycling unit begins recycling process. 01052_ R-06 Scavenger inserts Aluminum Leg into recycling unit. 01055_ R-06 Scavenger inserts Mining Laser into recycling unit. 01056_ Recycling unit begins recycling process. 01058_ Slammed into L-31 Rogue. 01058_ R-06 Scavenger inserts Med. Armor Plating into recycling unit. 01061_ Disposable Heat Sink destroyed. 01061_ R-06 Scavenger inserts Mining Laser into recycling unit. 01061_ Slammed into L-31 Rogue. 01061_ Destabilizing: Core damaged (-16). Map ----- +----------------------------------------------------+ | | | | | | | | | | | | | | | | | ??????????????????????????????????? | | ??????????????????????????????????? | | ??????????????????????????????????? | | ??????????????????????????????????? | | ??????????????????????????????????? | | ??????????????????????????????????? | | ??????????????????????????????????? | | ??????????????????????????????????? | | ??????????????????????????????????? | | ??????????????????????????????????? | | ??????????????????????????#####???? | | ??????????????????????????# #???? | | ????????????????########### #???? | | ????????????????# # #???? | | ????????????????# """ """ # #???? | | ????????????????# "Y" """ #% #???? | | ????????????????# r """%l% #???? | | ????????????????#! %@# ###?? | | ????????????????#= * # #?? | | ????????????????#=! # #?? | | ????????????????# # #?? | | ????????????????########### #?? | | ???????????????????######?# #?? | | ??????????????????##!!!!### #?? | | ??????????????????#! !## #?? | | ??????????????????#! !## #?? | | ?????????????????## ## #?? | | ?????????????????# #?? | | ?????????????????# !! #?? | | ???????????????### !!! #?? | | ???????????????# !![ #?? | | ???????????????# #?? | | ???????????????# #?? | | ???????????????# %* #########?? | | ???????????????#%[ #?????????? | | ???????????????#=% #?????????? | | ???????????????#== #?????????? | | ???????????????# #?????????? | | ??????????????? | #?????????? | | ?????????????? |% ????????? | | ????????????? !!! ??????? | | ????????????? ###?????? | +----------------------------------------------------+ Best States ------------- Heat Dissipation 28 Coolant Potential 100 Energy Generation 10 Energy Capacity 250 Matter Stores 300 Matter Capacity 300 Sight Range 16 Terrain Scan Density 10 Evasion (%) 50 Recoil Reduction 3 Item Schematics ----------------- None Robot Schematics ------------------ None Fabricated ------------ Nothing Alien Tech Used ----------------- None Achievements -------------- Loot Pinata Challenges ------------ None Game ------ Seed RestorationAluminumCharger Manual? 0 Play Time 00:15:41 Cumulative 2.6 hours Start 2021.02.10 @ 23:01:25 End 2021.02.10 @ 23:16:20 Sessions 1 Manual Loads 0 Difficulty Rogue Special Mode None Game No. 3 Rogue 3 Adventurer 0 Explorer 0 Win Type - Total 0 Types 0/0/0/0/0/0/0/0/0 Lore% 3 Gallery% 7 Achievement% 7 Wizard Run 0 Options --------- ASCII 0 Keyboard 0 Movement Numpad Keybinds 0 Fullscreen 1 Font 24/Terminus Map View 76x50 Tactical HUD 1 Map Filters NONE Filters NONE Steam 1 RUN: 91bc062e-948b-41da-8fa5-101a0957c539